Cogmind - Beta 13 @@@ ROGUE MODE // 2024.04.07 @ 22:49:51 Player: SnowyImp Result: Destroyed by G-47 Trooper with Particle Gun Performance ------------- Evolutions (3) 1500 Regions Visited (7) 1400 Robots Destroyed (60) 300 Value Destroyed (3496) 3496 Prototype IDs (4) 80 Alien Tech Used (0) 0 Bonus (959) 959 TOTAL SCORE: 7735 Bonus ------- High Alert Combat Kills 294 Follower Combat Kills 165 Entered Garrisons 200 Aligned with FarCom 300 Cogmind --------- Core Integrity 0/700 Matter 265/300 Energy 36/160 System Corruption 3% Temperature Cool (9) Movement Walking (120) Location -7/Garrison Parts ------- > --- POWER (1) -------- Light Nuclear Core > --- PROPULSION (4) --- Aluminum Leg Aluminum Leg Aluminum Leg Flexi-carbon Leg > --- UTILITY (6) ------ Improved Heat Sink Improved Heat Sink Improved Heat Sink > --- WEAPON (2) ------- High-powered Shock Rifle High-powered Shock Rifle > --- INVENTORY (5) ---- Potential Leg Potential Leg Relay Coupler [Grunt] (26) Relay Coupler [Grunt] (26) Relay Coupler [Grunt] (28) Peak State ------------ > --- POWER ------------ Reinforced Deuterium Engine > --- PROPULSION ------- Light Treads Light Treads Potential Leg Potential Leg > --- UTILITY ---------- Cryofiber Web Improved Heat Sink Improved Weapon Cycler Improved Weapon Cycler Layered Heavy Armor Plating > --- WEAPON ----------- Gatling Laser Precision Assault Rifle > --- INVENTORY -------- Layered Heavy Armor Plating [Rating: 66] Favorites ----------- Power Reinforced Deuterium Engine Engine Reinforced Deuterium Engine Power Core Light Nuclear Core Propulsion Aluminum Leg Treads Light Treads Leg Aluminum Leg Wheel Wheel Flight Unit Improved Flight Unit Utility Improved Heat Sink Device Improved Heat Sink Processor Signal Interpreter Protection Layered Heavy Armor Plating Weapon Railgun Energy Gun Heavy EM Pulse Gun Energy Cannon Beam Cannon Ballistic Gun Railgun Slashing Weapon Greatsword Piercing Weapon Spear Build | -11 -10 -10 -10 -9 -8 -7 -7 ------- Run | Yrd Mat Min Exi Min Mat Fac Gar Slots Evolved 6 | . . . . . 4 2 . Power . | . . . . . . . . Propulsion 2 | . . . . . 2 . . Utility 4 | . . . . . 2 2 . Weapon . | . . . . . . . . Parts Attached 96 | 4 15 5 4 3 22 8 35 Power 5 | 1 1 . . . 1 . 2 Engine 4 | 1 1 . . . 1 . 1 Core 1 | . . . . . . . 1 Reactor . | . . . . . . . . Propulsion 35 | 2 3 3 4 . 11 . 12 Treads 9 | . . . . . 3 . 6 Leg 24 | 2 3 3 4 . 6 . 6 Wheel 1 | . . . . . 1 . . Hover . | . . . . . . . . Flight 1 | . . . . . 1 . . Utility 21 | . 1 2 . 1 4 3 10 Device 14 | . . 1 . 1 3 1 8 Storage . | . . . . . . . . Processor 2 | . 1 . . . . 1 . Hackware . | . . . . . . . . Protection 5 | . . 1 . . 1 1 2 Artifact . | . . . . . . . . Weapon 35 | 1 10 . . 2 6 5 11 Energy Gun 14 | . 8 . . . . . 6 Energy Cannon 7 | . 2 . . . 3 1 1 Ballistic Gun 9 | 1 . . . . . 4 4 Ballistic Cannon . | . . . . . . . . Launcher . | . . . . . . . . Special Weapon . | . . . . . . . . Impact Weapon . | . . . . . . . . Slashing Weapon 2 | . . . . 1 1 . . Piercing Weapon 3 | . . . . 1 2 . . Special Melee Weapon . | . . . . . . . . Unidentified Prototypes 4 | . . . 1 . 1 2 . Parts Lost 28 | . 4 . . 1 5 1 17 Power 2 | . . . . . . . 2 Propulsion 12 | . 1 . . . 3 . 8 Utility 8 | . . . . 1 1 1 5 Weapon 6 | . 3 . . . 1 . 2 Highest Loss Streak 6 | . 2 . . 1 2 1 6 To Critical Strikes . | . . . . . . . . Average Slot Usage (%) 82 | . 77 96 99 85 77 87 80 Engine 8 | . 14 14 14 14 9 7 4 Core 1 | . . . . . . . 2 Treads 8 | . . . . . 8 23 15 Leg 17 | . 27 28 27 28 23 . 7 Device 17 | . . 10 14 13 20 10 25 Processor 2 | . 8 5 . . . 7 . Protection 7 | . . 8 14 14 2 15 7 Energy Gun 5 | . 24 . . . . . 4 Energy Cannon 5 | . . 28 28 . 7 1 . Ballistic Gun 4 | . . . . . . 13 8 Slashing Weapon 2 | . . . . 13 4 . . Naked Turns . | . . . . . . . . Heaviest Build 59 | 7 13 16 16 16 51 59 53 Greatest Support 80 | 20 20 27 60 27 60 10 80 Greatest Overweight (x) 16 | . 1 . . . 5 5 16 Average Overweight (x) . | . . . . . . 4 . Largest Inventory Capacity 5 | 5 5 5 5 5 5 5 5 Average Capacity 5 | 5 5 5 5 5 5 5 5 Most Carried 5 | 2 5 5 5 5 5 5 5 Average Carried 4 | 1 4 4 4 4 4 4 4 Final Capacity 5 | 5 5 5 5 5 5 5 5 Final Carried 5 | 2 5 5 5 5 5 5 5 Class Distribution -------------------- 58% | Mutant 36% | Scavenger-Mutant 5% | Gladiator Dominant Class ---------------- Mutant | -10/Materials Mutant | -10/Mines Mutant | -10/Exiles Mutant | -9/Mines Mutant | -8/Materials Scavenger-Mutant | -7/Factory Scavenger-Mutant | -7/Garrison Resources | -11 -10 -10 -10 -9 -8 -7 -7 ----------- Run | Yrd Mat Min Exi Min Mat Fac Gar Matter Collected 1707 | 209 126 70 . 65 215 . 1022 Remotely . | . . . . . . . . Salvage Created 2451 | . 448 212 . 43 439 . 1309 Parts 131 | . 21 17 . 7 19 . 67 Haulers Intercepted . | . . . . . . . . Recyclers Shooed 1 | . 1 . . . . . . Parts Field Recycled . | . . . . . . . . Retrieved Matter . | . . . . . . . . Parts Self-Destructed . | . . . . . . . . Prevented . | . . . . . . . . Kills | -11 -10 -10 -10 -9 -8 -7 -7 ------- Run | Yrd Mat Min Exi Min Mat Fac Gar Combat Hostiles Destroyed 59 | . 11 5 . 3 9 . 31 Melee 9 | . . . . 3 6 . . Guns 41 | . 10 . . . . . 31 Cannons 7 | . . 5 . . 2 . . AOE 1 | . 1 . . . . . . Classes Destroyed 7 | . 3 . . . 1 . 3 Tunneler 1 | . 1 . . . . . . Swarmer 18 | . 3 . . 3 . . 12 Grunt 33 | . 8 5 . . 8 . 12 Duelist 1 | . . . . . . . 1 Sentry 5 | . . . . . . . 5 Programmer 1 | . . . . . . . 1 Heavy 1 | . . . . . 1 . . Best Kill Streak 7 | . 2 2 . 3 3 . 7 Combat Bots Only 7 | . 2 2 . 3 3 . 7 Max Kills in Single Turn 2 | . 1 1 . 1 1 . 2 Gunslinging 1 | . . . . . . . 1 Exploded 1 | . 1 . . . . . . Melee 1 | . . . . 1 1 . . Uniques/NPCs Destroyed . | . . . . . . . . Combat | -11 -10 -10 -10 -9 -8 -7 -7 -------- Run | Yrd Mat Min Exi Min Mat Fac Gar Hostile Shots Fired 725 | . 73 13 . 26 88 . 525 Missed 195 | . 15 5 . 9 21 . 145 Damage Taken 6909 | . 636 111 . 181 1398 86 4497 Core 1030 | . 157 . . 14 153 . 706 Absorbed by Shields 61 | . . . . . . . 61 Redirected to Shielding 100 | . . . . 19 81 . . Regen/Repaired (Parts) 28 | . . . . . 28 . . Core Remaining (%) 67 | 100 . . . 31 72 . . Volleys Fired 179 | . 38 10 . . 18 . 113 Largest 2 | . 2 2 . . 2 . 2 Hottest 160 | . 90 120 . . 160 . 160 Shots Fired 319 | . 75 19 . . 31 . 194 Gun 268 | . 75 . . . . . 193 Cannon 51 | . . 19 . . 31 . 1 Launcher . | . . . . . . . . Special . | . . . . . . . . Kinetic 128 | . . . . . . . 128 Thermal 110 | . . 19 . . 31 . 60 Explosive . | . . . . . . . . Electromagnetic 81 | . 75 . . . . . 6 Robot Hit Streak 33 | . 8 4 . . 13 . 33 Robot Miss Streak 6 | . 3 1 . . 2 . 6 Penetration Max . | . . . . . . . . Secondary Targets 9 | . 3 . . . . . 6 Max Gunslinging Chain 1 | . 1 . . . . . 1 Shots Hit Robots 232 | . 47 12 . 5 42 . 126 Core Hits 94 | . 13 7 . 2 14 . 58 Critical Kills . | . . . . . . . . Critical Parts Destroyed 2 | . . . . . . . 2 Critical Strikes 5 | . 1 . . . 2 . 2 Destroy 2 | . . . . . . . 2 Corrupt 1 | . 1 . . . . . . Sever 2 | . . . . . 2 . . Melee Attacks 34 | . . . . 10 24 . . Impact . | . . . . . . . . Slashing 27 | . . . . 10 17 . . Piercing 7 | . . . . . 7 . . Sneak Attacks 2 | . . . . 1 1 . . Combat Hostiles 1 | . . . . . 1 . . Follow-up Attacks . | . . . . . . . . Damage Inflicted 5881 | . 834 212 . 316 1447 . 3072 Guns 3729 | . 697 . . . . . 3032 Cannons 800 | . . 212 . . 588 . . Explosions 159 | . 119 . . . . . 40 Melee 1175 | . . . . 316 859 . . Ramming 18 | . 18 . . . . . . Kinetic 2165 | . . . . . . . 2165 Thermal 1712 | . 119 212 . . 588 . 793 Explosive . | . . . . . . . . Electromagnetic 811 | . 697 . . . . . 114 Impact . | . . . . . . . . Slashing 970 | . . . . 316 654 . . Piercing 205 | . . . . . 205 . . Highest Corruption 3 | . . . . . . . 3 Average Corruption 2 | . . . . . . . 2 Corruption Purged . | . . . . . . . . Corruption Blocked . | . . . . . . . . Effects 49 | . . . . . . . 49 Message Errors 9 | . . . . . . . 9 Matter Fused 11 | . . . . . . . 11 Heat Flow Errors 4 | . . . . . . . 4 Energy Discharges 8 | . . . . . . . 8 Parts Rejected 2 | . . . . . . . 2 Data Loss (minor) 6 | . . . . . . . 6 Data Loss (major) 4 | . . . . . . . 4 Misfires 2 | . . . . . . . 2 Alerts 1 | . . . . . . . 1 Weapon Failures 2 | . . . . . . . 2 Overload Shots . | . . . . . . . . Overflow Damage 126 | . . . . 110 16 . . Projectiles 2 | . . . . . 2 . . Explosions . | . . . . . . . . Melee 124 | . . . . 110 14 . . Knockbacks . | . . . . . . . . Impact . | . . . . . . . . Kinetic . | . . . . . . . . Secondary . | . . . . . . . . Self-Inflicted Damage 61 | . 34 . . . . . 27 Shots 2 | . 1 . . . . . 1 Rammed . | . . . . . . . . Targets Rammed 5 | . 5 . . . . . . Kicked 5 | . 5 . . . . . . Crushed . | . . . . . . . . Highest Temperature 1124 | . 306 319 . . 409 . 1124 Average Temperature 187 | . 112 147 . . 198 . 271 Received Heat Transfer 1746 | . 243 81 . . 495 . 927 Effects 33 | . . 1 . . 2 . 30 Shutdowns 5 | . . . . . . . 5 Energy Bleed 4 | . . . . . 2 . 2 Interference 7 | . . 1 . . . . 6 Matter Decay 2 | . . . . . . . 2 Short Circuit 1 | . . . . . . . 1 Damage (minor) 5 | . . . . . . . 5 Damage (major) 6 | . . . . . . . 6 Damage (core) 3 | . . . . . . . 3 Siege Activations . | . . . . . . . . Robots Corrupted . | . . . . . . . . Combat Hostiles . | . . . . . . . . Parts Fried 4 | . 4 . . . . . . Impact Corruptions . | . . . . . . . . Robots Melted 1 | . . . . . 1 . . Combat Hostiles 1 | . . . . . 1 . . Parts Melted 3 | . . . . . 2 . 1 Heat Transferred 2972 | . 150 444 . . 1150 . 1228 Parts Sabotaged . | . . . . . . . . Parts Stolen . | . . . . . . . . Parts Stripped . | . . . . . . . . Power Chain Reactions 3 | . 2 . . . . . 1 Alert | -11 -10 -10 -10 -9 -8 -7 -7 ------- Run | Yrd Mat Min Exi Min Mat Fac Gar Peak Influence 1604 | . 265 188 . 70 118 53 1604 Initial 53 | . . 43 . . 27 53 39 Average 362 | . 153 118 . 3 61 46 737 Maximum Alert Level 5 | . 1 . . . . . 5 Low Security (%) 53 | 100 61 100 . 100 100 100 5 Level 1 12 | . 38 . . . . . 16 Level 2 11 | . . . . . . . 25 Level 3 12 | . . . . . . . 29 Level 4 9 | . . . . . . . 22 Level 5 . | . . . . . . . . High Security . | . . . . . . . . Max Security . | . . . . . . . . Squads Dispatched 7 | . 3 1 . . 3 . . Investigation 2 | . . 1 . . 1 . . Extermination . | . . . . . . . . Reinforcement 5 | . 3 . . . 2 . . Assault . | . . . . . . . . Garrison . | . . . . . . . . Intercept . | . . . . . . . . Searches Triggered . | . . . . . . . . Construction Impeded . | . . . . . . . . Haulers Reinforced . | . . . . . . . . Active Scanning Responses . | . . . . . . . . Cargo Convoy Interrupts . | . . . . . . . . Stealth | -11 -10 -10 -10 -9 -8 -7 -7 --------- Run | Yrd Mat Min Exi Min Mat Fac Gar Distress Signals 3 | . 2 . . . 1 . . Communications Jammed . | . . . . . . . . Distress Signals . | . . . . . . . . Times Spotted 94 | . 23 6 . 3 18 . 44 Peak Tracking Total 8 | . 5 2 . 3 3 . 8 Tactical Retreats 8 | . 2 . . . 2 . 4 Traps | -11 -10 -10 -10 -9 -8 -7 -7 ------- Run | Yrd Mat Min Exi Min Mat Fac Gar Traps Triggered 10 | . 2 . . . . 1 7 Indirectly . | . . . . . . . . Trap Hack Attempts . | . . . . . . . . Triggered . | . . . . . . . . Disarmed . | . . . . . . . . Reprogrammed . | . . . . . . . . Reused . | . . . . . . . . Traps Extracted . | . . . . . . . . Installed . | . . . . . . . . Triggered . | . . . . . . . . Machines | -11 -10 -10 -10 -9 -8 -7 -7 ---------- Run | Yrd Mat Min Exi Min Mat Fac Gar Machines Disabled 10 | . 4 . . . . . 6 Max in Single Turn 1 | . 1 . . . . . 1 Garrison Relay 6 | . . . . . . . 6 Machines Repaired . | . . . . . . . . Machines Dismantled . | . . . . . . . . Machines Sabotaged . | . . . . . . . . Overloaded Fab Kills . | . . . . . . . . Hacking | -11 -10 -10 -10 -9 -8 -7 -7 --------- Run | Yrd Mat Min Exi Min Mat Fac Gar Machines Accessed 9 | . 2 1 . 2 1 2 1 Terminals 5 | . 2 . . 1 . 1 1 Fabricators . | . . . . . . . . Repair Stations 1 | . . . . . 1 . . Recycling Units . | . . . . . . . . Scanalyzers . | . . . . . . . . Garrison Access 1 | . . . . . . 1 . Total Hacks 15 | . 5 1 . 3 2 3 1 Successful 8 | . 2 1 . 1 2 1 1 Failed 7 | . 3 . . 2 . 2 . Catastrophic 1 | . . . . . . 1 . Database Lockouts . | . . . . . . . . Manual 10 | . 5 . 1 2 . 2 . Terminals 10 | . 5 . . 2 . 2 1 Fabricators . | . . . . . . . . Repair Stations 2 | . . . . . 2 . . Recycling Units . | . . . . . . . . Scanalyzers . | . . . . . . . . Garrison Access 1 | . . . . . . 1 . Terminal Hacks 4 | . 1 1 . 1 . . 1 Open Door 2 | . . 1 . 1 . . . Branch Access Points 1 | . 1 . . . . . . Emergency Access Points 1 | . . . . . . . 1 Fabricator Hacks . | . . . . . . . . Repair Station Hacks 2 | . . . . . 2 . . Scan Component 1 | . . . . . 1 . . Repair 1 | . . . . . 1 . . Recycling Unit Hacks . | . . . . . . . . Scanalyzer . | . . . . . . . . Garrison Access Hacks 1 | . . . . . . 1 . Unlock Access 1 | . . . . . . 1 . Unauthorized Hacks 1 | . 1 . . . . . . Terminals 1 | . 1 . . . . . . Botnet 1 | . 1 . . . . . . Fabricators . | . . . . . . . . Repair Stations . | . . . . . . . . Recycling Units . | . . . . . . . . Scanalyzers . | . . . . . . . . Garrison Access . | . . . . . . . . Data Cores Recovered . | . . . . . . . . Used . | . . . . . . . . Hacking Detections 6 | . 2 . . 1 1 1 1 Full Trace Events . | . . . . . . . . Feedback Events . | . . . . . . . . Feedback Blocked . | . . . . . . . . Robot Schematics Acquired . | . . . . . . . . Robots Built . | . . . . . . . . Authchips . | . . . . . . . . Time . | . . . . . . . . Total Robot Build Rating . | . . . . . . . . Part Schematics Acquired . | . . . . . . . . Parts Built . | . . . . . . . . Authchips . | . . . . . . . . Time . | . . . . . . . . Total Part Build Rating . | . . . . . . . . Parts Repaired 1 | . . . . . 1 . . Time 38 | . . . . . 38 . . Parts Recycled . | . . . . . . . . Recycled Matter . | . . . . . . . . Retrieved Matter . | . . . . . . . . Retrieved Components . | . . . . . . . . Parts Scanalyzed . | . . . . . . . . Part Schematics Acquired . | . . . . . . . . Parts Damaged . | . . . . . . . . Bothacking | -11 -10 -10 -10 -9 -8 -7 -7 ------------ Run | Yrd Mat Min Exi Min Mat Fac Gar Used RIF Installer . | . . . . . . . . Robots Hacked . | . . . . . . . . Non-combat . | . . . . . . . . Combat . | . . . . . . . . Robot Hacks Applied . | . . . . . . . . Relay Couplers Released 26 | . . . . . . . 26 Machine Destruction 26 | . . . . . . . 26 Fabnet Peak Effective % . | . . . . . . . . Robots Rewired 3 | . . . . . . . 3 Allies Hacked . | . . . . . . . . Hacks Repelled . | . . . . . . . . Allies | -11 -10 -10 -10 -9 -8 -7 -7 -------- Run | Yrd Mat Min Exi Min Mat Fac Gar Total Allies 5 | . . 2 . . . . 3 Largest Group 3 | . . 2 2 . . . 3 Highest-Rated Group 129 | . . 45 45 . . . 129 Highest-Rated Ally 43 | . . 31 31 . . . 43 Total Orders . | . . . . . . . . Ally Attacks 18 | . . . . . . . 18 Total Damage 719 | . . . . . . . 719 Kills 4 | . . . . . . . 4 Allies Corrupted 1 | . . . . . . . 1 Allies Melted . | . . . . . . . . Intel | -11 -10 -10 -10 -9 -8 -7 -7 ------- Run | Yrd Mat Min Exi Min Mat Fac Gar Robot Analysis Total . | . . . . . . . . Derelict Logs Recovered 1 | . . . . 1 . . . Drone Launches . | . . . . . . . . Drone Recoveries . | . . . . . . . . Exploration | -11 -10 -10 -10 -9 -8 -7 -7 ------------- Run | Yrd Mat Min Exi Min Mat Fac Gar Turns Passed 6317 | 57 850 511 447 604 1046 283 2519 Spaces Moved 3570 | 43 531 374 388 443 447 172 1172 Core 11 | 5 . . . . . . 6 Treads 963 | . . . . . 8 . 955 Legs 2307 | 38 531 374 388 443 363 . 170 Wheels 289 | . . . . . 76 172 41 Hover . | . . . . . . . . Flight . | . . . . . . . . Fastest Speed 50 | 50 120 120 90 125 110 140 90 Average Speed 142 | 111 120 123 113 125 129 154 178 Slowest Speed 850 | 120 190 125 125 125 250 155 850 Overloaded Moves . | . . . . . . . . Propulsion Burnouts . | . . . . . . . . Robots Hopped . | . . . . . . . . Cave-ins Triggered . | . . . . . . . . Exploration Rate (%) 51 | 4 73 82 61 78 21 5 88 Regions Visited 7 Branch Regions 3 Pre-discovered Areas 1 | . . 1 . . . . . Known Exits Taken 2 | . 1 . . . . 1 . Unknown Exits Taken 5 | 1 . 1 1 1 1 . . Scrap Searched 3 | . . 1 . 2 . . . Spaces Dug 1 | . . . . . 1 . . Terrain Destroyed 24 | . 4 . . . 9 . 11 Melee 1 | . . . . . 1 . . Projectile 13 | . . . . . 8 . 5 AOE 10 | . 4 . . . . . 6 Terrain Rammed . | . . . . . . . . Walls Destroyed . | . . . . . . . . Machines Disabled . | . . . . . . . . Actions | -11 -10 -10 -10 -9 -8 -7 -7 --------- Run | Yrd Mat Min Exi Min Mat Fac Gar Total 4468 | 50 666 406 397 475 839 189 1446 Wait 450 | 2 53 12 . 15 303 . 65 Move 3564 | 42 530 373 387 442 446 172 1172 Hop . | . . . . . . . . Pick Up 32 | 2 13 1 1 . 6 3 6 Fast Attach 77 | 4 10 2 2 2 20 5 32 Attach 14 | . 3 . . 1 2 3 5 Detach 13 | . . . 1 3 5 1 3 Swap 7 | . 2 3 2 . . . . Drop 62 | . 12 5 4 2 15 5 19 Fire 179 | . 38 10 . . 18 . 113 Melee 34 | . . . . 10 24 . . Ram . | . . . . . . . . Kick 5 | . 5 . . . . . . Crush . | . . . . . . . . Escape Stasis 9 | . . . . . . . 9 Rewire 22 | . . . . . . . 22 Trap . | . . . . . . . . Miscellaneous . | . . . . . . . . Route ------- -11/Scrapyard -10/Materials (discovered 3 exits: *Mat x2 / *Min) -10/Mines -10/Exiles -9/Mines -8/Materials -7/Factory -7/Garrison (discovered 3 exits: [*Fac x3]) History --------- Turn | Location | Event 12 | -11/Scrapyard | Discovered new exit (range 15) 58 | -11/Scrapyard | Entered Materials 318 | -10/Materials | Build established: Mutant 628 | -10/Materials | Discovered new exit (range 16) 645 | -10/Materials | Identified exit to Materials 682 | -10/Materials | Discovered exit to Materials (range 13) 735 | -10/Materials | Core integrity fell below 50% 805 | -10/Materials | Identified exit to Mines 908 | -10/Materials | Entered Mines 962 | -10/Mines | Learned location of Storage (-9) 1087 | -10/Mines | Met a Derelict shopkeep closing up shop 1405 | -10/Mines | Deemed a non-threat by the Exiles lab entrance 1406 | -10/Mines | Discovered new exit (range 5) 1419 | -10/Mines | Entered Exiles 1419 | -10/Exiles | Accompanied by 2 allies 1448 | -10/Exiles | Met 8R-AWN 1449 | -10/Exiles | Led the pair of lost Derelicts to a safe place 1472 | -10/Exiles | Met EX-HEX 1508 | -10/Exiles | Met EX-BIN 1523 | -10/Exiles | Aligned with FarCom system 1524 | -10/Exiles | Given EX-Vault access code 1553 | -10/Exiles | Opened EX-Vault 1560 | -10/Exiles | Found Prototype Leg 1560 | -10/Exiles | Identified Potential Leg 1563 | -10/Exiles | Found Potential Leg 1584 | -10/Exiles | Warned to stay clear of 0b10 Research branches 1610 | -10/Exiles | Met EX-DEC 1641 | -10/Exiles | Discovered new exit (range 14) 1866 | -10/Exiles | Left Exiles lab with Potential Leg 1866 | -10/Exiles | Entered Mines 1884 | -9/Mines | Met a Derelict who couldn't figure out how to use a Trap Extractor 2290 | -9/Mines | Found a damaged Exp. Sensor Array with a note attached 2421 | -9/Mines | Discovered new exit (range 12) 2470 | -9/Mines | Entered Materials 2470 | -8/Materials | Evolved 4 slots: Propulsion x2, Utility x2 3009 | -8/Materials | Build established: Gladiator 3189 | -8/Materials | Repaired Cryofiber Web 3507 | -8/Materials | Discovered new exit (range 8) 3516 | -8/Materials | Entered Factory 3516 | -7/Factory | Evolved 2 slots: Utility x2 3620 | -7/Factory | Build established: Scavenger-Mutant 3799 | -7/Factory | Identified exit to Garrison 3799 | -7/Factory | Entered Garrison 3825 | -7/Garrison | Spotted B-75 Beast 3876 | -7/Garrison | Triggered checkpoint 3892 | -7/Garrison | Garrison Relay disabled 4355 | -7/Garrison | Lost 6 parts (1p4n1w) 4524 | -7/Garrison | Triggered checkpoint 4596 | -7/Garrison | Build established: Mutant 4620 | -7/Garrison | Discovered new exit (range 15) 4722 | -7/Garrison | Triggered checkpoint 4764 | -7/Garrison | Garrison Relay disabled 4884 | -7/Garrison | Triggered checkpoint 4884 | -7/Garrison | Triggered checkpoint 4915 | -7/Garrison | Triggered checkpoint 4923 | -7/Garrison | Core integrity fell below 50% 4935 | -7/Garrison | Lost 4 parts (2n2u) 4944 | -7/Garrison | Core integrity fell below 20% 4954 | -7/Garrison | Destroyed 7 combat bots 5187 | -7/Garrison | Discovered new exit (range 13) 5232 | -7/Garrison | Triggered checkpoint 5297 | -7/Garrison | Garrison Relay disabled 5299 | -7/Garrison | Build established: Scavenger-Mutant 5456 | -7/Garrison | Discovered new exit (range 13) 5800 | -7/Garrison | Garrison Relay disabled 6148 | -7/Garrison | Triggered checkpoint 6192 | -7/Garrison | Triggered checkpoint 6198 | -7/Garrison | Garrison Relay disabled 6318 | -7/Garrison | Destroyed by G-47 Trooper with Particle Gun Last Messages --------------- relay unit. 06199_ ALERT: Garrison interior compromised. 06202_ Dropped Relay Coupler [Sentry]. 06203_ Acquired Relay Coupler [Grunt]. 06222_ System corrupted: Component data lost. 06283_ C-30 ARC bursts open, deploying its payload. 06283_ L-41 Fighter unfolds itself. 06283_ G-47 Trooper unfolds itself. 06306_ W-25 Informer springs to life. 06306_ Acquired Hpw. Shock Rifle. 06308_ Dropped Quantum Rifle. 06310_ Acquired Hpw. Shock Rifle. 06311_ L-41 Fighter destroyed. 06314_ Chain reaction triggered in Lgt. Nuclear Core. 06314_ Lyr. Heavy Armor Plating destroyed. 06314_ Destroyed Lyr. Heavy Armor Plating. 06317_ G-47 Trooper destroyed. Map ----- +----------------------------------------------------+ | ????# ####### #?????# #???????????????????? | | ????# " " #?????# < #???????????????????? | | ????# ### ### #?????# #???????????????????? | | ????# ###?# #???# #?????# ###???????????????????? | | ????# #???# #???# #?????# #?????????????????????? | | ????# #???# #???# #?????# #?????????????????????? | | ????# #???# #???# ##????# #?????????????????????? | | ????# #???# #???# T#????# #?????????????????????? | | ????# #???# #???# #?????# #?????????????????????? | | ????# #???# #???# #?????# #?????????????????????? | | ????# #???# #???# #?????# #?????????????????????? | | ????# #???# #???# #?????# #?????????????????????? | | ????# #####"##### ####### #?????????????????????? | | ????# #?????????????????????? | | ????# #?????????????????????? | | ????# ####"#### #######;##?????????????????????? | | #???# #### #### #?????# #??????????????????????? | | #???# " ## #?????# #??????????????????????? | | #???# ###### ## #?????# #??????????????????????? | | ##### #????# ## #?????# #??????????????????????? | | = ## #????# ##^ #?##?##;###????????????????????? | | ## ##???# ## #?# ##!!!!#????????????????????? | | #####"## ####;[ w!#????????????????????? | | g g!%=! #????????????????????? | | ####;=%/ [#????????????????????? | | ##[ ###########????#[@[[#????????????????????? | | ##% ###????????????######????????????????????? | | ^* #??????????????????????????????????????? | | ^ #??????????????????????????????????????? | | ^ #??????????????????????????????????????? | | ^ "+??????????????????????????????????????? | | * ## ####?????????????????????????????????????? | | %= ## ####+#######?????????????????????????????? | | * [ ! #?????????????????????????????? | | % #?????????????????????????????? | | ! = #?????????????????????????????? | | ! ##""#####"### #?????????????????????????????? | | % ## #???# #?# #?????????????????????????????? | | ##### #???# #?# #?????????????????????????????? | | ????# #???# #?# #?????????????????????????????? | | ????# #???# #?# #?????????????????????????????? | | ????# #???# #?# #?????????????????????????????? | | ????# ##### ### #?????????????????????????????? | | ????# + #?????????????????????????????? | | ????# + #?????????????????????????????? | | ????#++######### #?????????????????????????????? | | ???????????????# #?????????????????????????????? | | ???????????????# #?????????????????????????????? | | ???????????????# #?????????????????????????????? | | ???????????????# #?????????????????????????????? | +----------------------------------------------------+ Best States ------------- Heat Dissipation 76 Energy Generation 16 Energy Capacity 290 Matter Stores 300 Matter Capacity 300 Sight Range 16 Terrain Scan Density 10 Base Temperature (-) 100 Armor Coverage 825 Weapon Shielding 66 Weapon Cycling 30 Evasion (%) 57 Recoil Reduction 4 Item Schematics ----------------- None Robot Schematics ------------------ None Fabricated ------------ Nothing Alien Tech Used ----------------- None Achievements -------------- None Challenges ------------ None Game ------ Seed ShrapnelInsulatedLauncher Manual? 0 Play Time 00:59:20 Cumulative 22.9 hours Start 2024.04.07 @ 21:49:18 End 2024.04.07 @ 22:49:51 Sessions 1 Manual Loads 0 Difficulty Rogue Special Mode None Game No. 31 Rogue 31 Adventurer 0 Explorer 0 Win Type - Total 0 Types 0/0/0/0/0/0/0/0/0 Lore% 13 Gallery% 27 Achievement% 23 Wizard Run 0 Options --------- Layout 1 ASCII 0 Keyboard 0 Movement Numpad Keybinds 0 Fullscreen 1 Font 24/Crisp Map View 50x35 Zoom Use 0% Tactical HUD 1 Map Filters NONE Filters NONE Steam 1 RUN: 8c696f81-c201-43b6-ae55-4ba3efd6d532